[Event "Hungarian Youth-ch I 2024"]
[Site "Szolnok"]
[Date "2024.04.01"]
[Round "1.9"]
[White "Gergely, Daniel"]
[Black "Vadkerti, Vince"]
[Result "1/2-1/2"]
[ECO "E73"]
[WhiteElo "2230"]
[BlackElo "1884"]
[Annotator "ChessBase"]
[PlyCount "78"]
[EventDate "2024.03.31"]
[EventType "swiss"]
[EventCountry "HUN"]
[SourceTitle "playchess.com"]
[Source "ChessBase"]
[SourceQuality "1"]
[TimeControl "5400+30"]

1. d4 {[%emt 0:00:11]} Nf6 {[%emt 0:00:15]} 2. c4 {[%emt 0:00:20]} g6 {[%emt 0:00:18]} 3. Nc3 {[%emt 0:00:16]} Bg7 {[%emt 0:00:17]} 4. e4 {[%emt 0:01:08]} d6 {[%emt 0:00:34]} 5. Be2 {[%emt 0:00:44]} O-O {[%emt 0:00:54]} 6. Bg5 {[%emt 0:00:49]} Na6 {[%emt 0:00:46]} 7. Qd2 {[%emt 0:01:06]} c6 {[%emt 0:01:06]} 8. Rd1 {[%emt 0:03:32]} Nc7 {[%emt 0:00:59]} 9. Nf3 {[%emt 0:02:39]} d5 {[%emt 0:03:02]} 10. cxd5 {[%emt 0:04:14]} cxd5 {[%emt 0:00:49]} 11. e5 {[%emt 0:00:48]} Ne4 {[%emt 0:01:31]} 12. Qe3 {[%emt 0:07:09]} Nxg5 {[%emt 0:03:56]} 13. Nxg5 {[%emt 0:02:47]} h6 {[%emt 0:09:34]} 14. Nf3 {[%emt 0:01:29]} g5 {[%emt 0:23:22]} 15. Bd3 {[%emt 0:13:09]} Bg4 {[%emt 0:08:28]} 16. h4 {[%emt 0:01:29]} f6 {[%emt 0:07:31]} 17. hxg5 {[%emt 0:03:01]} fxg5 {[%emt 0:02:54]} 18. Ne2 {[%emt 0:03:47]} Ne6 {[%emt 0:03:50]} 19. Nh2 {[%emt 0:04:39]} Nf4 {[%emt 0:06:07]} 20. Kf1 {[%emt 0:05:08]} Bxe2+ {[%emt 0:03:04]} 21. Bxe2 {[%emt 0:00:20]} Nxe2 {[%emt 0:03:11]} 22. Qxe2 {[%emt 0:00:29]} Qe8 {[%emt 0:03:23]} 23. Ng4 {[%emt 0:04:37]} Qg6 {[%emt 0:02:43]} 24. g3 {[%emt 0:11:52]} Rac8 {[%emt 0:02:10]} 25. Ne3 {[%emt 0:03:37]} Qe4 {[%emt 0:04:14]} 26. Kg1 {[%emt 0:01:32]} Rc7 {[%emt 0:02:45]} 27. Qh5 {[%emt 0:04:12]} Rfc8 {[%emt 0:03:04]} 28. Qh3 {[%emt 0:01:16]} Rc1 {[%emt 0:02:35]} 29. Qe6+ {[%emt 0:01:35]} Kh7 {[%emt 0:00:58]} 30. Kh2 {[%emt 0:01:12]} Rf8 {[%emt 0:00:36]} 31. Rxc1 {[%emt 0:02:44]} Rxf2+ {[%emt 0:00:08]} 32. Kh3 {[%emt 0:01:26]} Qxe3 {[%emt 0:00:21]} 33. Rcf1 {[%emt 0:04:31]} Qf3 {[%emt 0:01:02]} 34. Rxf2 {[%emt 0:02:20]} Qxh1+ {[%emt 0:00:18]} 35. Kg4 {[%emt 0:02:09]} Qe4+ {[%emt 0:00:33]} 36. Kh3 {[%emt 0:00:11]} Qh1+ {[%emt 0:00:19]} 37. Rh2 {[%emt 0:00:22]} Qf1+ {[%emt 0:00:35]} 38. Rg2 {[%emt 0:00:55]} Qh1+ {[%emt 0:00:19]} 39. Rh2 {[%emt 0:00:20]} Qf1+ {[%emt 0:00:05]} 1/2-1/2

[Event "Hungarian Youth-ch I 2024"]
[Site "Szolnok"]
[Date "2024.04.01"]
[Round "1.10"]
[White "Salamon, Laszlo"]
[Black "Szegedy, Matyas"]
[Result "0-1"]
[ECO "B40"]
[WhiteElo "1901"]
[BlackElo "2177"]
[Annotator "ChessBase"]
[PlyCount "66"]
[EventDate "2024.03.31"]
[EventType "swiss"]
[EventCountry "HUN"]
[SourceTitle "playchess.com"]
[Source "ChessBase"]
[SourceQuality "1"]
[TimeControl "5400+30"]

1. e4 {[%emt 0:00:06]} c5 {[%emt 0:00:59]} 2. Nf3 {[%emt 0:00:43]} e6 {[%emt 0:00:14]} 3. c3 {[%emt 0:00:05]} Nf6 {[%emt 0:00:58]} 4. e5 {[%emt 0:02:49]} Nd5 {[%emt 0:00:28]} 5. d4 {[%emt 0:01:17]} cxd4 {[%emt 0:00:49]} 6. cxd4 {[%emt 0:00:29]} Nc6 {[%emt 0:00:40]} 7. Nc3 {[%emt 0:01:33]} d6 {[%emt 0:01:21]} 8. Nxd5 {[%emt 0:08:46]} exd5 {[%emt 0:00:18]} 9. exd6 {[%emt 0:03:19]} Bxd6 {[%emt 0:01:21]} 10. Be3 {[%emt 0:05:21]} Bf5 {[%emt 0:06:19]} 11. a3 {[%emt 0:06:15]} O-O {[%emt 0:04:11]} 12. Bd3 {[%emt 0:00:57]} Bxd3 {[%emt 0:11:47]} 13. Qxd3 {[%emt 0:00:05]} Qa5+ {[%emt 0:14:38]} 14. Nd2 {[%emt 0:03:07]} f5 {[%emt 0:04:39]} 15. f4 {[%emt 0:09:21]} Nb4 {[%emt 0:29:30]} 16. Qb3 {[%emt 0:18:48]} Qa6 {[%emt 0:04:31]} 17. Kf2 {[%emt 0:07:39]} Nd3+ {[%emt 0:01:19]} 18. Kf3 {[%emt 0:01:46]} Nxf4 {[%emt 0:07:31]} 19. Bxf4 {[%emt 0:01:52]} Bxf4 {[%emt 0:00:08]} 20. Qxd5+ {[%emt 0:01:51]} Kh8 {[%emt 0:00:07]} 21. Kxf4 {[%emt 0:05:13]} Qh6+ {[%emt 0:00:12]} 22. Kf3 {[%emt 0:00:26]} Qxd2 {[%emt 0:00:10]} 23. Rhd1 {[%emt 0:05:05]} Qxb2 {[%emt 0:01:15]} 24. Rab1 {[%emt 0:01:02]} Qxa3+ {[%emt 0:02:38]} 25. Rb3 {[%emt 0:00:06]} Qa2 {[%emt 0:00:15]} 26. Qxb7 {[%emt 0:03:05]} Rae8 {[%emt 0:00:19]} 27. Re3 {[%emt 0:01:20]} Rxe3+ {[%emt 0:01:27]} 28. Kxe3 {[%emt 0:00:03]} Re8+ {[%emt 0:00:08]} 29. Kf4 {[%emt 0:00:05]} Qf2+ {[%emt 0:00:59]} 30. Qf3 {[%emt 0:00:51]} Qh4+ {[%emt 0:00:11]} 31. g4 {[%emt 0:00:30]} Qxh2+ {[%emt 0:02:06]} 32. Qg3 {[%emt 0:00:05]} g5+ {[%emt 0:00:42]} 33. Kf3 {[%emt 0:00:28]} Qe2# {[%emt 0:00:06]} 0-1

[Event "Hungarian Youth-ch I 2024"]
[Site "Szolnok"]
[Date "2024.04.01"]
[Round "1.11"]
[White "Kasa, Barnabas"]
[Black "Lehocz, Jozsef Jr."]
[Result "0-1"]
[ECO "B53"]
[WhiteElo "1803"]
[BlackElo "2143"]
[Annotator "NA"]
[PlyCount "70"]
[EventDate "2024.03.31"]
[EventType "swiss"]
[EventCountry "HUN"]
[SourceTitle "playchess.com"]
[Source "ChessBase"]
[SourceQuality "1"]
[TimeControl "5400+30"]

1. e4 {[%emt 0:00:03]} c5 {[%emt 0:01:16]} 2. Nf3 {[%emt 0:01:01]} d6 {[%emt 0:00:41]} 3. d4 {[%emt 0:00:52]} cxd4 {[%emt 0:00:07]} 4. Qxd4 {[%emt 0:00:42]} Nc6 {[%emt 0:05:33]} 5. Bb5 {[%emt 0:01:31]} Bd7 {[%emt 0:05:38]} 6. Bxc6 {[%emt 0:00:31]} bxc6 {[%emt 0:07:21]} 7. O-O {[%emt 0:01:09]} e5 {[%emt 0:06:01]} 8. Qd3 {[%emt 0:03:55]} Be7 {[%emt 0:08:39]} 9. Na3 {[%emt 0:09:02]} Nf6 {[%emt 0:22:59]} 10. Nc4 {[%emt 0:05:14]} Be6 {[%emt 0:00:51]} 11. Bg5 {[%emt 0:05:21]} Qc7 {[%emt 0:02:25]} 12. Rad1 {[%emt 0:06:26]} Rd8 {[%emt 0:03:29]} 13. Ne3 {[%emt 0:07:59]} d5 {[%emt 0:08:06]} 14. Bxf6 {[%emt 0:01:06]} Bxf6 {[%emt 0:00:58]} 15. exd5 {[%emt 0:00:11]} cxd5 {[%emt 0:03:40]} 16. Qb5+ {[%emt 0:02:03]} Qd7 {[%emt 0:00:06]} 17. Qa5 {[%emt 0:09:24]} Qb7 {[%emt 0:03:16]} 18. Qa4+ {[%emt 0:04:20]} Rd7 {[%emt 0:01:35]} 19. Ne1 {[%emt 0:05:18]} O-O {[%emt 0:04:42]} 20. Nd3 {[%emt 0:01:05]} Rc7 {[%emt 0:01:24]} 21. c3 {[%emt 0:06:51]} d4 {[%emt 0:02:23]} 22. cxd4 {[%emt 0:02:00]} exd4 {[%emt 0:00:04]} 23. Nc2 {[%emt 0:01:56]} Rc4 {[%emt 0:01:21]} 24. b4 {[%emt 0:02:53]} Bd7 {[%emt 0:01:33]} 25. Qb3 {[%emt 0:00:48]} Rfc8 {[%emt 0:01:49]} 26. Nc5 {[%emt 0:01:22]} R8xc5 {[%emt 0:00:10]} 27. bxc5 {[%emt 0:01:00]} Qxb3 {[%emt 0:00:05]} 28. axb3 {[%emt 0:00:09]} Rxc2 {[%emt 0:00:03]} 29. Rc1 {[%emt 0:01:59]} d3 {[%emt 0:01:20]} 30. h3 {[%emt 0:06:16]} Kf8 {[%emt 0:01:52]} 31. g4 {[%emt 0:01:26]} Rxc1 {[%emt 0:00:58]} 32. Rxc1 {[%emt 0:00:16]} d2 {[%emt 0:00:25]} 33. Rd1 {[%emt 0:04:42]} Bc3 {[%emt 0:00:12]} 34. f3 {[%emt 0:00:53]} Be6 {[%emt 0:00:24]} 35. c6 {[%emt 0:00:36]} Ke7 {[%emt 0:00:13]} 0-1

[Event "Hungarian Youth-ch I 2024"]
[Site "Szolnok"]
[Date "2024.04.01"]
[Round "1.12"]
[White "Feher, Botond"]
[Black "Sinoros-Szabo, Mate"]
[Result "1/2-1/2"]
[ECO "A20"]
[WhiteElo "2018"]
[BlackElo "1776"]
[Annotator "NA"]
[PlyCount "75"]
[EventDate "2024.03.31"]
[EventType "swiss"]
[EventCountry "HUN"]
[SourceTitle "playchess.com"]
[Source "ChessBase"]
[SourceQuality "1"]
[TimeControl "5400+30"]

1. c4 {[%emt 0:00:10]} e5 {[%emt 0:00:16]} 2. g3 {[%emt 0:00:08]} d6 {[%emt 0:00:25]} 3. Bg2 {[%emt 0:00:10]} g6 {[%emt 0:00:40]} 4. Nc3 {[%emt 0:00:51]} Bg7 {[%emt 0:00:40]} 5. e4 {[%emt 0:01:04]} Nc6 {[%emt 0:02:03]} 6. d3 {[%emt 0:02:00]} f5 {[%emt 0:00:57]} 7. Nge2 {[%emt 0:01:38]} Nf6 {[%emt 0:00:51]} 8. O-O {[%emt 0:02:15]} O-O {[%emt 0:01:16]} 9. Nd5 {[%emt 0:01:31]} Be6 {[%emt 0:00:38]} 10. exf5 {[%emt 0:07:35]} Bxf5 {[%emt 0:01:21]} 11. Nxf6+ {[%emt 0:14:44]} Qxf6 {[%emt 0:04:17]} 12. Be3 {[%emt 0:04:07]} Kh8 {[%emt 0:13:41]} 13. Qd2 {[%emt 0:01:55]} Qe6 {[%emt 0:10:53]} 14. b3 {[%emt 0:24:02]} Bh3 {[%emt 0:07:43]} 15. Rae1 {[%emt 0:04:26]} Bxg2 {[%emt 0:07:57]} 16. Kxg2 {[%emt 0:00:07]} Ne7 {[%emt 0:11:39]} 17. d4 {[%emt 0:01:58]} d5 {[%emt 0:04:37]} 18. dxe5 {[%emt 0:10:20]} dxc4 {[%emt 0:06:03]} 19. bxc4 {[%emt 0:05:37]} Qxc4 {[%emt 0:05:20]} 20. Rc1 {[%emt 0:01:30]} Qe4+ {[%emt 0:01:56]} 21. f3 {[%emt 0:01:02]} Qxe5 {[%emt 0:02:41]} 22. Bd4 {[%emt 0:00:12]} Rad8 {[%emt 0:04:55]} 23. Qe1 {[%emt 0:03:00]} Qe6 {[%emt 0:05:36]} 24. Bxg7+ {[%emt 0:01:24]} Kxg7 {[%emt 0:00:01]} 25. Nd4 {[%emt 0:06:22]} Qxe1 {[%emt 0:01:09]} 26. Rfxe1 {[%emt 0:00:07]} Rxd4 {[%emt 0:00:44]} 27. Rxe7+ {[%emt 0:00:06]} Rf7 {[%emt 0:00:28]} 28. Rxf7+ {[%emt 0:00:48]} Kxf7 {[%emt 0:00:07]} 29. Rxc7+ {[%emt 0:00:04]} Kg8 {[%emt 0:00:26]} 30. a3 {[%emt 0:02:31]} Rd3 {[%emt 0:02:32]} 31. a4 {[%emt 0:01:09]} Rd4 {[%emt 0:01:39]} 32. Rxb7 {[%emt 0:01:06]} Rxa4 {[%emt 0:00:12]} 33. g4 {[%emt 0:00:40]} a5 {[%emt 0:01:40]} 34. h4 {[%emt 0:00:44]} Ra1 {[%emt 0:00:50]} 35. h5 {[%emt 0:01:20]} gxh5 {[%emt 0:00:40]} 36. gxh5 {[%emt 0:00:08]} a4 {[%emt 0:00:41]} 37. h6 {[%emt 0:00:52]} a3 {[%emt 0:00:28]} 38. Rg7+ {[%emt 0:00:47]} 1/2-1/2

[Event "Hungarian Youth-ch I 2024"]
[Site "Szolnok"]
[Date "2024.04.01"]
[Round "1.13"]
[White "Karman, Gergely"]
[Black "Kovacs, Kristof"]
[Result "0-1"]
[ECO "C55"]
[WhiteElo "1767"]
[BlackElo "2000"]
[Annotator "NA RC"]
[PlyCount "96"]
[EventDate "2024.03.31"]
[EventType "swiss"]
[EventCountry "HUN"]
[SourceTitle "playchess.com"]
[Source "ChessBase"]
[SourceQuality "1"]
[TimeControl "5400+30"]

1. e4 {[%emt 0:00:03]} e5 {[%emt 0:00:13]} 2. Nf3 {[%emt 0:00:11]} Nc6 {[%emt 0:00:14]} 3. Bc4 {[%emt 0:00:13]} Nf6 {[%emt 0:00:16]} 4. d3 {[%emt 0:00:14]} Be7 {[%emt 0:00:23]} 5. O-O {[%emt 0:00:46]} O-O {[%emt 0:00:19]} 6. Nbd2 {[%emt 0:01:06]} d6 {[%emt 0:00:23]} 7. h3 {[%emt 0:01:18]} Na5 {[%emt 0:01:01]} 8. Bb3 {[%emt 0:05:12]} Nxb3 {[%emt 0:01:17]} 9. axb3 {[%emt 0:00:34]} Re8 {[%emt 0:00:58]} 10. Re1 {[%emt 0:04:11]} Bf8 {[%emt 0:01:56]} 11. Nf1 {[%emt 0:02:29]} h6 {[%emt 0:05:22]} 12. Ng3 {[%emt 0:08:41]} g6 {[%emt 0:08:13]} 13. Be3 {[%emt 0:15:24]} a6 {[%emt 0:02:20]} 14. Qd2 {[%emt 0:03:23]} Kh7 {[%emt 0:01:46]} 15. d4 {[%emt 0:07:50]} exd4 {[%emt 0:02:29]} 16. Bxd4 {[%emt 0:00:51]} Bg7 {[%emt 0:00:27]} 17. Rad1 {[%emt 0:14:21]} Be6 {[%emt 0:02:26]} 18. e5 {[%emt 0:06:18]} dxe5 {[%emt 0:00:30]} 19. Bxe5 {[%emt 0:00:52]} Qxd2 {[%emt 0:02:34]} 20. Rxd2 {[%emt 0:00:32]} c6 {[%emt 0:01:24]} 21. Bxf6 {[%emt 0:04:39]} Bxf6 {[%emt 0:00:15]} 22. Ne4 {[%emt 0:00:21]} Be7 {[%emt 0:01:13]} 23. Nd6 {[%emt 0:02:40]} Bxd6 {[%emt 0:00:57]} 24. Rxd6 {[%emt 0:00:07]} Rad8 {[%emt 0:02:40]} 25. Red1 {[%emt 0:01:53]} Rxd6 {[%emt 0:00:46]} 26. Rxd6 {[%emt 0:01:06]} Bd5 {[%emt 0:01:32]} 27. Rd7 {[%emt 0:01:28]} b5 {[%emt 0:01:31]} 28. Kf1 {[%emt 0:00:56]} a5 {[%emt 0:11:38]} 29. Nd2 {[%emt 0:05:31]} Rb8 {[%emt 0:04:33]} 30. f3 {[%emt 0:04:10]} a4 {[%emt 0:01:42]} 31. b4 {[%emt 0:04:29]} Ra8 {[%emt 0:01:37]} 32. Nb1 {[%emt 0:02:00]} Kg7 {[%emt 0:02:34]} 33. Kf2 {[%emt 0:01:04]} Ra6 {[%emt 0:03:03]} 34. Rc7 {[%emt 0:00:56]} Kf6 {[%emt 0:02:54]} 35. Nc3 {[%emt 0:00:51]} Bc4 {[%emt 0:08:05]} 36. Ne4+ {[%emt 0:00:27]} Kg7 {[%emt 0:00:13]} 37. Nc5 {[%emt 0:00:34]} a3 {[%emt 0:00:32]} 38. bxa3 {[%emt 0:00:30]} Rxa3 {[%emt 0:00:07]} 39. Rxc6 {[%emt 0:00:16]} Rc3 {[%emt 0:00:13]} 40. Kg3 {[%emt 0:01:28]} Rxc2 {[%emt 0:00:25]} 41. Rc7 {[%emt 0:00:27]} Rb2 {[%emt 0:00:12]} 42. Na6 {[%emt 0:00:26]} Bf1 {[%emt 0:00:22]} 43. Rc5 {[%emt 0:00:30]} Rxg2+ {[%emt 0:00:17]} 44. Kf4 {[%emt 0:00:24]} Ra2 {[%emt 0:00:27]} 45. Nc7 {[%emt 0:00:16]} Ra4 {[%emt 0:00:24]} 46. Nd5 {[%emt 0:00:40]} Bc4 {[%emt 0:00:21]} 47. Nb6 {[%emt 0:00:49]} Rxb4 {[%emt 0:00:07]} 48. Nxc4 {[%emt 0:00:28]} Rxc4+ {[%emt 0:00:06]} 0-1

[Event "Hungarian Youth-ch I 2024"]
[Site "Szolnok"]
[Date "2024.04.01"]
[Round "1.14"]
[White "Sinoros-Szabo, Daniel"]
[Black "Nagy, Levente Laszlo"]
[Result "1-0"]
[ECO "B32"]
[WhiteElo "1971"]
[BlackElo "1746"]
[Annotator "NA"]
[PlyCount "61"]
[EventDate "2024.03.31"]
[EventType "swiss"]
[EventCountry "HUN"]
[SourceTitle "playchess.com"]
[Source "ChessBase"]
[SourceQuality "1"]
[TimeControl "5400+30"]

1. e4 {[%emt 0:00:20]} c5 {[%emt 0:00:10]} 2. Nf3 {[%emt 0:00:19]} Nc6 {[%emt 0:00:08]} 3. d4 {[%emt 0:00:13]} cxd4 {[%emt 0:00:17]} 4. Nxd4 {[%emt 0:00:07]} e5 {[%emt 0:00:05]} 5. Nb5 {[%emt 0:00:41]} d6 {[%emt 0:00:10]} 6. N1c3 {[%emt 0:00:13]} a6 {[%emt 0:00:09]} 7. Na3 {[%emt 0:00:22]} Be7 {[%emt 0:00:39]} 8. Nc4 {[%emt 0:01:28]} Nf6 {[%emt 0:01:10]} 9. a4 {[%emt 0:03:55]} Be6 {[%emt 0:01:36]} 10. Be3 {[%emt 0:03:33]} Bxc4 {[%emt 0:03:13]} 11. Bxc4 {[%emt 0:00:21]} O-O {[%emt 0:00:29]} 12. O-O {[%emt 0:01:47]} Qc7 {[%emt 0:01:09]} 13. Bg5 {[%emt 0:13:10]} Nb4 {[%emt 0:05:15]} 14. Bb3 {[%emt 0:04:10]} Nfd5 {[%emt 0:04:56]} 15. exd5 {[%emt 0:07:20]} Bxg5 {[%emt 0:01:18]} 16. Ne4 {[%emt 0:01:43]} Bh6 {[%emt 0:15:39]} 17. c3 {[%emt 0:01:53]} f5 {[%emt 0:00:23]} 18. Ng3 {[%emt 0:01:37]} f4 {[%emt 0:00:23]} 19. Ne4 {[%emt 0:00:47]} f3 {[%emt 0:00:33]} 20. cxb4 {[%emt 0:02:47]} fxg2 {[%emt 0:00:20]} 21. Re1 {[%emt 0:07:36]} Qd7 {[%emt 0:00:41]} 22. Qh5 {[%emt 0:04:02]} Rf4 {[%emt 0:01:25]} 23. Bc2 {[%emt 0:04:57]} Raf8 {[%emt 0:00:58]} 24. Re2 {[%emt 0:02:52]} Qe7 {[%emt 0:03:00]} 25. Qh3 {[%emt 0:02:22]} Kh8 {[%emt 0:03:53]} 26. Ra3 {[%emt 0:03:12]} Rh4 {[%emt 0:04:33]} 27. Qe6 {[%emt 0:02:46]} Qd8 {[%emt 0:01:37]} 28. Nxd6 {[%emt 0:03:35]} Rhf4 {[%emt 0:01:32]} 29. Rc3 {[%emt 0:06:45]} R4f6 {[%emt 0:01:57]} 30. Rc8 {[%emt 0:01:40]} Qxc8 {[%emt 0:05:56]} 31. Qxc8 {[%emt 0:00:35]} 1-0

[Event "Hungarian Youth-ch I 2024"]
[Site "Szolnok"]
[Date "2024.04.01"]
[Round "1.15"]
[White "Karman, Mihaly"]
[Black "Hangay, Oliver"]
[Result "0-1"]
[ECO "A47"]
[WhiteElo "1600"]
[BlackElo "1962"]
[Annotator "NA"]
[PlyCount "54"]
[EventDate "2024.03.31"]
[EventType "swiss"]
[EventCountry "HUN"]
[SourceTitle "playchess.com"]
[Source "ChessBase"]
[SourceQuality "1"]
[TimeControl "5400+30"]

1. d4 {[%emt 0:00:15]} Nf6 {[%emt 0:00:12]} 2. Nf3 {[%emt 0:00:08]} b6 {[%emt 0:00:18]} 3. g3 {[%emt 0:00:20]} Bb7 {[%emt 0:00:14]} 4. Bg2 {[%emt 0:00:20]} g6 {[%emt 0:00:23]} 5. O-O {[%emt 0:00:43]} Bg7 {[%emt 0:00:07]} 6. c4 {[%emt 0:01:34]} O-O {[%emt 0:00:22]} 7. Nc3 {[%emt 0:00:28]} Ne4 {[%emt 0:01:20]} 8. Qd3 {[%emt 0:04:46]} Nxc3 {[%emt 0:00:48]} 9. bxc3 {[%emt 0:01:35]} Nc6 {[%emt 0:10:03]} 10. Bf4 {[%emt 0:05:07]} Na5 {[%emt 0:07:46]} 11. e4 {[%emt 0:10:17]} Ba6 {[%emt 0:04:29]} 12. Nd2 {[%emt 0:04:15]} d6 {[%emt 0:06:31]} 13. Rfe1 {[%emt 0:07:29]} e5 {[%emt 0:04:36]} 14. Be3 {[%emt 0:04:30]} Qe8 {[%emt 0:07:36]} 15. dxe5 {[%emt 0:04:37]} dxe5 {[%emt 0:02:56]} 16. a4 {[%emt 0:01:31]} Rd8 {[%emt 0:01:28]} 17. Qe2 {[%emt 0:08:29]} Qc6 {[%emt 0:03:41]} 18. Bf1 {[%emt 0:01:00]} Kh8 {[%emt 0:04:24]} 19. Rec1 {[%emt 0:09:25]} Rd6 {[%emt 0:18:14]} 20. Rcb1 {[%emt 0:06:20]} f5 {[%emt 0:04:18]} 21. Rb4 {[%emt 0:07:07]} Re8 {[%emt 0:06:00]} 22. Bg2 {[%emt 0:01:27]} Qd7 {[%emt 0:01:10]} 23. Bh3 {[%emt 0:03:10]} c5 {[%emt 0:00:45]} 24. Rbb1 {[%emt 0:03:29]} Qf7 {[%emt 0:00:12]} 25. Bf1 {[%emt 0:00:35]} f4 {[%emt 0:00:48]} 26. gxf4 {[%emt 0:02:28]} exf4 {[%emt 0:00:11]} 27. Qf3 {[%emt 0:00:19]} Rf6 {[%emt 0:03:16]} 0-1

[Event "Hungarian Youth-ch I 2024"]
[Site "Szolnok"]
[Date "2024.04.01"]
[Round "1.16"]
[White "Papai, Mate"]
[Black "Hogyinszki, Marcell Csaba"]
[Result "1-0"]
[ECO "D85"]
[WhiteElo "1887"]
[BlackElo "1570"]
[Annotator "NA RC"]
[PlyCount "41"]
[EventDate "2024.03.31"]
[EventType "swiss"]
[EventCountry "HUN"]
[SourceTitle "playchess.com"]
[Source "ChessBase"]
[SourceQuality "1"]
[TimeControl "5400+30"]

1. d4 {[%emt 0:00:05]} Nf6 {[%emt 0:00:06]} 2. c4 {[%emt 0:00:14]} g6 {[%emt 0:00:10]} 3. Nc3 {[%emt 0:00:15]} d5 {[%emt 0:00:20]} 4. cxd5 {[%emt 0:00:15]} Nxd5 {[%emt 0:00:23]} 5. Bd2 {[%emt 0:00:22]} Bg7 {[%emt 0:00:17]} 6. e4 {[%emt 0:00:23]} Nb6 {[%emt 0:00:37]} 7. Be3 {[%emt 0:01:00]} O-O {[%emt 0:00:45]} 8. Be2 {[%emt 0:01:22]} Nc6 {[%emt 0:01:13]} 9. d5 {[%emt 0:00:53]} Na5 {[%emt 0:01:12]} 10. Bd4 {[%emt 0:03:38]} Qd6 {[%emt 0:01:52]} 11. Nf3 {[%emt 0:06:18]} Bg4 {[%emt 0:02:24]} 12. Bxg7 {[%emt 0:01:45]} Kxg7 {[%emt 0:01:15]} 13. Qd4+ {[%emt 0:00:13]} Kg8 {[%emt 0:02:01]} 14. e5 {[%emt 0:00:15]} Qd7 {[%emt 0:01:46]} 15. e6 {[%emt 0:01:03]} Qd6 {[%emt 0:03:01]} 16. Qxg4 {[%emt 0:00:18]} Nxd5 {[%emt 0:01:15]} 17. Nxd5 {[%emt 0:01:14]} Qxd5 {[%emt 0:00:23]} 18. exf7+ {[%emt 0:00:13]} Rxf7 {[%emt 0:01:37]} 19. O-O {[%emt 0:00:40]} Raf8 {[%emt 0:01:07]} 20. Rfd1 {[%emt 0:05:44]} Qc6 {[%emt 0:01:20]} 21. Ne5 {[%emt 0:01:39]} 1-0

[Event "Hungarian Youth-ch I 2024"]
[Site "Szolnok"]
[Date "2024.04.01"]
[Round "1.17"]
[White "Hugyecz, Marton"]
[Black "Meszaros-Csonka, David"]
[Result "0-1"]
[ECO "D15"]
[WhiteElo "1497"]
[BlackElo "1941"]
[Annotator "NA RC"]
[PlyCount "40"]
[EventDate "2024.03.31"]
[EventType "swiss"]
[EventCountry "HUN"]
[SourceTitle "playchess.com"]
[Source "ChessBase"]
[SourceQuality "1"]
[TimeControl "5400+30"]

1. d4 {[%emt 0:00:02]} d5 {[%emt 0:00:52]} 2. Nf3 {[%emt 0:00:18]} Nf6 {[%emt 0:00:10]} 3. c4 {[%emt 0:00:17]} c6 {[%emt 0:00:07]} 4. Nc3 {[%emt 0:00:10]} dxc4 {[%emt 0:00:08]} 5. e3 {[%emt 0:00:33]} b5 {[%emt 0:00:06]} 6. a4 {[%emt 0:00:22]} b4 {[%emt 0:00:09]} 7. Na2 {[%emt 0:02:50]} e6 {[%emt 0:00:37]} 8. Bxc4 {[%emt 0:01:53]} a5 {[%emt 0:02:21]} 9. O-O {[%emt 0:03:32]} Be7 {[%emt 0:00:33]} 10. b3 {[%emt 0:01:54]} O-O {[%emt 0:01:38]} 11. Bb2 {[%emt 0:01:02]} Nbd7 {[%emt 0:02:49]} 12. Qc2 {[%emt 0:07:47]} c5 {[%emt 0:04:30]} 13. Bd3 {[%emt 0:06:11]} Qb6 {[%emt 0:38:18]} 14. Nc1 {[%emt 0:03:54]} Ba6 {[%emt 0:04:40]} 15. Ne2 {[%emt 0:03:35]} Rac8 {[%emt 0:02:55]} 16. Rac1 {[%emt 0:01:43]} cxd4 {[%emt 0:02:27]} 17. Qd2 {[%emt 0:04:02]} dxe3 {[%emt 0:01:43]} 18. fxe3 {[%emt 0:00:26]} Nc5 {[%emt 0:04:14]} 19. Bd4 {[%emt 0:01:45]} Bxd3 {[%emt 0:00:43]} 20. Bxc5 {[%emt 0:00:18]} Bxc5 {[%emt 0:00:01]} 0-1

[Event "Hungarian Youth-ch I 2024"]
[Site "Szolnok"]
[Date "2024.04.01"]
[Round "1.18"]
[White "Marton-John, Almos Kiran"]
[Black "Kertesz, Adam"]
[Result "1-0"]
[ECO "B32"]
[WhiteElo "1693"]
[BlackElo "1508"]
[Annotator "NA RC"]
[PlyCount "83"]
[EventDate "2024.03.31"]
[EventType "swiss"]
[EventCountry "HUN"]
[SourceTitle "playchess.com"]
[Source "ChessBase"]
[SourceQuality "1"]
[TimeControl "5400+30"]

1. e4 {[%emt 0:00:00]} c5 {[%emt 0:00:14]} 2. Nf3 {[%emt 0:00:04]} Nc6 {[%emt 0:00:24]} 3. d4 {[%emt 0:00:03]} cxd4 {[%emt 0:00:47]} 4. Nxd4 {[%emt 0:00:09]} e5 {[%emt 0:01:23]} 5. Nb5 {[%emt 0:00:07]} d6 {[%emt 0:00:57]} 6. N1c3 {[%emt 0:00:05]} a6 {[%emt 0:01:27]} 7. Na3 {[%emt 0:00:05]} Nf6 {[%emt 0:01:58]} 8. Bg5 {[%emt 0:00:06]} Be7 {[%emt 0:00:55]} 9. Bxf6 {[%emt 0:00:07]} Bxf6 {[%emt 0:00:38]} 10. Nc4 {[%emt 0:00:06]} Nd4 {[%emt 0:01:51]} 11. Nd5 {[%emt 0:00:59]} Be6 {[%emt 0:02:11]} 12. Nce3 {[%emt 0:02:38]} O-O {[%emt 0:03:42]} 13. c3 {[%emt 0:00:13]} Nc6 {[%emt 0:01:24]} 14. g3 {[%emt 0:00:13]} Bg5 {[%emt 0:02:13]} 15. Bg2 {[%emt 0:00:30]} Bxe3 {[%emt 0:00:33]} 16. Nxe3 {[%emt 0:04:18]} Qd7 {[%emt 0:03:47]} 17. O-O {[%emt 0:00:30]} Rac8 {[%emt 0:04:13]} 18. f4 {[%emt 0:00:59]} Bh3 {[%emt 0:03:32]} 19. f5 {[%emt 0:08:28]} Bxg2 {[%emt 0:00:26]} 20. Kxg2 {[%emt 0:00:10]} f6 {[%emt 0:02:07]} 21. Nc4 {[%emt 0:01:28]} d5 {[%emt 0:01:34]} 22. Nb6 {[%emt 0:00:10]} Qd6 {[%emt 0:00:43]} 23. Nxc8 {[%emt 0:00:06]} Rxc8 {[%emt 0:01:42]} 24. Qxd5+ {[%emt 0:00:07]} Qxd5 {[%emt 0:00:50]} 25. exd5 {[%emt 0:00:04]} Ne7 {[%emt 0:00:35]} 26. Rad1 {[%emt 0:00:11]} Rd8 {[%emt 0:00:18]} 27. c4 {[%emt 0:00:10]} Kf7 {[%emt 0:01:36]} 28. b4 {[%emt 0:00:45]} b5 {[%emt 0:02:20]} 29. cxb5 {[%emt 0:03:05]} axb5 {[%emt 0:00:21]} 30. a3 {[%emt 0:00:12]} Nxd5 {[%emt 0:00:18]} 31. Kg1 {[%emt 0:02:47]} Ke7 {[%emt 0:01:02]} 32. Rd3 {[%emt 0:00:16]} Nb6 {[%emt 0:02:07]} 33. Rxd8 {[%emt 0:00:11]} Kxd8 {[%emt 0:00:43]} 34. Rc1 {[%emt 0:00:42]} Kd7 {[%emt 0:00:42]} 35. Rc5 {[%emt 0:00:10]} Kd6 {[%emt 0:01:16]} 36. Rxb5 {[%emt 0:00:07]} Kc6 {[%emt 0:00:19]} 37. Rc5+ {[%emt 0:00:25]} Kd6 {[%emt 0:00:32]} 38. Kf2 {[%emt 0:00:35]} Nd5 {[%emt 0:00:16]} 39. Kf3 {[%emt 0:00:31]} Nb6 {[%emt 0:01:34]} 40. Ke4 {[%emt 0:00:26]} Na4 {[%emt 0:00:27]} 41. Rc8 {[%emt 0:00:36]} Nb6 {[%emt 0:01:38]} 42. Rg8 {[%emt 0:00:58]} 1-0